bitfinex-derivatives/quotes_ETHF0:USTF0_20250830
["timestamp","ask_amount","ask_price","bid_price","bid_amount"]
[1756586192365,0.299,4341.6,4341.1,3.2078]
[1756586192668,0.4896,4341.3,4341.2,0.7446]
[1756586192867,0.68594827,4341.3,4341.2,0.7446]
[1756586193871,0.68594827,4341.3,4341.2,0.5086]
[1756586194172,0.68594827,4341.3,4341.2,0.7446]
[1756586197470,0.68594827,4341.3,4341.2,0.7436]
[1756586200973,0.68452087,4341.3,4341.2,0.7436]
[1756586201674,0.68453469,4341.3,4341.2,0.7436]
[1756586201875,0.68455001,4341.3,4341.2,0.7436]
[1756586202271,0.68455001,4341.3,4341.2,0.5086]
[1756586202474,0.68455001,4341.3,4341.2,0.7436]
[1756586203373,0.19495001,4341.3,4341.2,0.7436]
[1756586203571,0.19495001,4341.3,4341.2,4.97395]
[1756586203773,0.2877,4342.6,4341.4,0.1434]
[1756586203974,0.2877,4342.4,4341.8,3.2078]
[1756586204177,0.1904,4342.1,4342.0,0.3417]
[1756586204474,0.4781,4342.1,4342.0,0.3417]
[1756586205278,0.4781,4342.1,4341.9,0.235]
[1756586205472,0.1904,4342.1,4341.9,0.3784]
[1756586205671,0.4781,4342.0,4341.9,0.5767]
[1756586206774,0.4781,4342.0,4341.9,0.4333]
[1756586206974,0.4781,4342.0,4341.9,0.5767]
[1756586208776,0.2877,4341.8,4341.3,3.2078]
[1756586208975,0.1904,4341.5,4341.4,0.235]
[1756586209276,0.4781,4341.5,4341.4,0.235]
[1756586209682,0.2877,4341.3,4340.8,3.2078]
[1756586209872,0.4781,4340.9,4340.3,3.2078]
[1756586210077,0.1904,4340.5,4340.4,0.4333]
[1756586210383,0.4781,4340.5,4340.4,0.3417]
[1756586210580,0.4781,4340.5,4340.4,0.5767]
[1756586211081,0.4781,4340.5,4340.4,0.1983]
[1756586211283,0.4781,4340.5,4340.4,0.4333]
[1756586212774,0.4781,4340.5,4340.4,0.5767]
[1756586215884,0.2877,4340.5,4340.4,0.5767]
[1756586218285,0.1904,4340.5,4340.3,3.2078]
[1756586218487,0.4781,4340.4,4340.3,3.2078]
[1756586218686,0.4781,4340.4,4340.3,3.4428]
[1756586218882,0.4781,4340.4,4340.3,3.7845]
[1756586219488,3.2078,4341.7,4340.4,0.1434]
[1756586219687,0.1904,4340.7,4340.6,0.3417]
[1756586219888,0.2877,4341.6,4340.6,0.1983]
[1756586220088,0.4781,4340.9,4340.8,0.3417]
[1756586220486,0.4781,4340.9,4340.8,0.5767]
[1756586220788,0.2877,4341.6,4340.9,0.1434]
[1756586220984,0.1904,4341.1,4341.0,0.4333]
[1756586221188,0.4781,4341.1,4341.0,0.5767]
[1756586222585,0.2877,4342.3,4341.6,0.1434]
[1756586222784,0.1904,4342.3,4341.4,3.3512]
[1756586223089,0.4781,4341.6,4341.5,0.235]
[1756586223888,0.4781,4341.6,4341.5,0.1983]
[1756586224089,0.4781,4341.6,4341.5,0.235]
[1756586224484,0.4781,4341.6,4341.4,3.2078]
[1756586224684,0.4781,4341.6,4341.5,0.235]
[1756586224884,0.4781,4341.6,4341.5,0.5767]
[1756586225483,0.4781,4341.6,4341.5,0.3417]
[1756586225788,3.2078,4342.4,4341.6,0.1434]
[1756586225789,0.2877,4342.3,4341.6,0.1434]
[1756586225989,0.4781,4342.3,4342.2,0.1983]
[1756586226189,0.4781,4342.3,4342.2,0.4333]
[1756586228895,0.4781,4342.3,4342.2,0.5758]
[1756586229387,0.4781,4342.3,4342.2,0.235]
[1756586229588,0.3108,4342.2,4341.4,3.2078]
[1756586229788,0.5169,4341.5,4341.4,3.2078]
[1756586229996,0.5169,4341.5,4341.4,3.4428]
[1756586230187,0.5169,4341.5,4341.4,0.235]
[1756586231396,0.5169,4341.5,4341.4,0.5772]
[1756586233293,0.5169,4341.5,4341.4,0.4347]
[1756586238192,0.3108,4341.5,4341.4,0.5772]
[1756586238899,0.5169,4341.5,4341.4,0.5772]
[1756586239801,0.5169,4342.3,4342.2,0.3422]
[1756586240101,0.5169,4342.3,4342.2,0.5762]
[1756586241299,0.5169,4342.3,4342.2,0.234]
[1756586242000,0.5169,4342.3,4342.2,0.4337]
[1756586242196,0.5169,4342.3,4342.2,0.5761]
[1756586243691,0.234,4343.8,4342.2,0.5761]
[1756586243692,0.3108,4343.0,4342.3,0.1424]
[1756586248506,0.5169,4342.4,4342.3,3.2078]
[1756586248700,0.5169,4342.4,4342.3,0.234]
[1756586249204,0.5169,4341.9,4341.8,3.2078]
[1756586249397,0.5169,4341.9,4341.8,3.4418]
[1756586251105,0.5169,4341.9,4341.8,3.7839]
[1756586252106,0.3108,4342.3,4341.8,3.7839]
[1756586252301,3.2078,4343.2,4341.8,3.6415]
[1756586252503,0.92864198,4343.1,4341.9,0.1424]
[1756586252703,0.54108,4343.1,4341.9,0.1424]
[1756586252898,0.3108,4343.1,4341.9,0.1424]
[1756586253105,0.3108,4343.1,4342.1,0.1424]
[1756586253910,0.5169,4342.2,4342.1,0.1997]
[1756586254207,0.5169,4342.2,4342.1,0.234]
[1756586255301,0.5169,4342.2,4342.1,0.4337]
[1756586255498,0.5169,4342.2,4342.1,0.5761]
[1756586262008,0.3068,4343.1,4342.2,0.1426]
[1756586262209,0.204,4342.5,4342.4,0.3315]
[1756586262408,0.5108,4342.5,4342.4,0.5655]
[1756586265101,0.5108,4342.5,4342.4,0.4229]
[1756586265303,3.2078,4343.2,4342.3,3.2078]
[1756586265304,0.3068,4342.4,4342.3,3.2078]
[1756586265612,0.5108,4342.4,4342.3,0.234]
[1756586266812,0.5108,4341.8,4341.7,3.2078]
[1756586267007,0.5108,4341.8,4341.7,3.4418]
[1756586269306,0.5108,4341.8,4341.7,3.7733]
[1756586270212,3.2078,4343.4,4341.8,0.1426]
[1756586270512,0.3068,4343.2,4341.8,0.1426]
[1756586270818,0.3068,4342.8,4341.8,0.1426]
[1756586271311,0.53709001,4342.8,4341.8,0.1426]
[1756586271511,0.61889934,4342.7,4341.8,0.1426]
[1756586271712,0.3068,4342.8,4341.8,0.1426]
[1756586271914,0.3068,4342.6,4341.8,0.1426]
[1756586276713,0.5108,4341.9,4341.8,0.1889]
[1756586277509,0.5108,4341.9,4341.7,3.2078]
[1756586277717,0.5108,4341.9,4341.8,0.234]
[1756586278809,0.204,4341.3,4341.2,3.3504]
[1756586279010,0.204,4341.3,4341.2,3.4418]
[1756586279011,0.5108,4341.3,4341.2,3.4418]
[1756586280216,0.5108,4341.3,4341.2,3.6307]
[1756586280415,0.5108,4341.3,4341.2,3.7733]
[1756586280615,0.5108,4342.2,4342.1,0.1889]
[1756586280920,0.5108,4342.2,4342.1,0.5655]
[1756586281218,0.5108,4342.2,4342.1,0.234]
[1756586283823,0.5108,4342.2,4342.1,0.5655]
[1756586284922,3.2078,4342.3,4342.1,0.4229]
[1756586285124,3.2078,4342.3,4342.2,0.3315]
[1756586288022,3.6965,4342.3,4342.2,0.3315]
[1756586288919,0.4887,4342.3,4342.2,0.3315]
[1756586290524,3.2078,4343.0,4342.2,0.3315]
[1756586290718,0.2962,4342.9,4342.3,0.1426]
[1756586290918,0.4887,4342.9,4342.8,0.1941]
[1756586291122,0.4887,4342.9,4342.8,0.4281]
[1756586291824,0.4887,4342.9,4342.8,0.234]
[1756586308944,0.1925,4342.9,4342.3,0.1422]
[1756586309243,0.1925,4342.3,4342.2,0.233]
[1756586309943,0.4887,4342.3,4342.2,0.233]
[1756586310545,0.4887,4342.3,4341.8,33.3082]
[1756586310746,3.2078,4343.0,4341.8,33.166]
[1756586310747,0.4887,4341.9,4341.8,33.166]
[1756586310939,0.4887,4341.9,4341.8,33.399]
[1756586311349,0.4887,4341.9,4341.8,33.5412]
[1756586311542,0.4887,4341.9,4341.8,33.3082]
[1756586311747,0.4887,4341.9,4341.8,33.5412]
[1756586312644,0.4887,4341.9,4341.8,33.166]
[1756586312946,0.4887,4341.9,4341.8,33.399]
[1756586313146,0.4887,4341.9,4341.8,33.5412]
[1756586313550,0.2962,4341.9,4341.8,33.5412]
[1756586317043,0.2962,4341.9,4341.8,36.749]
[1756586317445,3.2078,4342.8,4341.8,36.749]
[1756586317645,0.53269001,4342.7,4341.9,0.1423]
[1756586318148,0.3024,4342.5,4341.9,0.1423]
[1756586320151,0.5107,4342.0,4341.9,0.339]
[1756586320450,0.5107,4342.0,4341.9,0.572]
[1756586321547,0.5107,4342.0,4341.9,0.4297]
[1756586321951,0.5107,4342.0,4341.9,0.233]
[1756586322146,0.5107,4342.0,4341.8,3.2078]
[1756586322350,0.5107,4341.9,4341.8,3.2078]
[1756586322547,0.5107,4341.9,4341.8,3.4408]
[1756586322747,0.5107,4341.9,4341.8,3.5831]
[1756586323052,0.5107,4341.9,4341.8,3.7798]
[1756586327849,0.5107,4341.9,4341.8,3.5468]
[1756586328149,0.5107,4341.9,4341.8,3.7798]
[1756586328353,0.3024,4341.9,4341.8,3.7798]
[1756586333857,0.3024,4342.7,4342.6,0.1967]
[1756586334057,0.3024,4342.7,4342.6,0.572]
[1756586334753,0.5107,4342.7,4342.6,0.572]
[1756586339157,0.2083,4342.7,4342.4,0.1423]
[1756586339363,0.2083,4342.7,4342.5,0.233]
[1756586339756,0.3024,4342.6,4342.5,0.233]
[1756586339956,0.5107,4342.6,4342.5,0.233]
[1756586341359,3.2078,4343.3,4342.3,3.2078]
[1756586341563,0.2083,4342.6,4342.5,0.233]
[1756586341963,0.5107,4342.6,4342.5,0.233]
[1756586342665,0.5107,4342.6,4342.0,0.1423]
[1756586342859,0.5107,4341.8,4341.7,0.339]
[1756586343064,0.2083,4341.8,4341.7,0.233]
[1756586343365,3.2078,4342.7,4341.6,3.2078]
[1756586343366,0.5107,4341.7,4341.6,3.5468]
[1756586343566,0.5107,4341.7,4341.6,3.7798]
[1756586344156,0.5107,4341.7,4341.6,3.5468]
[1756586344361,0.5107,4341.7,4341.6,3.4408]
[1756586344965,0.5107,4341.7,4341.6,3.5831]
[1756586345764,0.5107,4341.7,4341.6,3.7798]
[1756586347569,0.5107,4341.7,4341.3,0.1424]
[1756586348066,0.4852,4341.3,4341.2,33.169]
[1756586348261,0.4852,4341.3,4341.2,33.402]
[1756586349262,0.4852,4341.3,4341.2,33.5444]
[1756586353767,0.2882,4341.3,4341.2,33.5444]
[1756586353967,3.2078,4342.1,4341.2,33.402]
[1756586354168,0.23033,4342.0,4341.3,0.1424]
[1756586354368,0.197,4341.5,4341.4,0.5747]
[1756586354568,0.4852,4341.5,4341.4,0.5747]
[1756586356574,0.2882,4341.5,4341.4,0.5747]
[1756586360480,0.4852,4341.5,4341.4,0.5747]
[1756586360774,0.197,4341.6,4341.5,0.3417]
[1756586360973,0.4852,4341.6,4341.5,0.3417]
[1756586362672,0.4852,4341.6,4341.5,0.5747]
[1756586369375,0.2882,4341.5,4341.2,33.169]
[1756586369579,0.4852,4341.3,4341.2,33.169]
[1756586369981,0.4852,4341.3,4341.2,33.402]
[1756586370180,0.4852,4341.3,4341.2,33.5446]
[1756586373979,0.4852,4341.3,4341.2,0.5749]
[1756586374876,0.197,4340.8,4340.7,0.3419]
[1756586375078,0.4852,4340.8,4340.7,0.5749]
[1756586375482,0.4852,4340.8,4340.6,3.2078]
[1756586375687,0.233,4342.3,4340.3,33.176]
[1756586375688,0.2882,4340.4,4340.3,33.176]
[1756586375888,0.2882,4340.4,4340.3,33.409]
[1756586376783,0.2882,4340.4,4340.3,33.3186]
[1756586376988,0.2882,4340.4,4340.3,33.5516]
[1756586384591,0.2914,4341.0,4340.4,0.1425]
[1756586384791,0.1983,4340.7,4340.6,0.351]
[1756586385091,0.4897,4340.7,4340.6,0.351]
[1756586387087,0.4897,4340.7,4340.6,0.584]
[1756586387387,0.2914,4340.7,4340.6,0.584]
[1756586389092,0.4897,4340.7,4340.6,0.584]
[1756586391290,3.2078,4341.1,4340.6,0.584]
[1756586391496,0.4897,4341.4,4341.3,0.351]
[1756586391686,0.4897,4341.4,4341.3,0.584]
[1756586392293,0.4897,4341.4,4341.3,0.351]
[1756586392492,0.4897,4341.4,4341.3,0.584]
[1756586392693,3.2078,4341.6,4341.3,0.584]
[1756586392892,0.2914,4341.5,4341.4,0.351]
[1756586393099,3.2078,4341.6,4341.5,0.351]
[1756586393295,0.2914,4341.9,4341.6,0.1425]
[1756586393492,0.233,4342.6,4341.9,0.1425]
[1756586393493,0.2914,4342.5,4341.9,0.1425]
[1756586393688,3.6975,4342.6,4342.5,0.351]
[1756586393900,3.6975,4342.6,4342.5,0.584]
[1756586399808,3.6975,4342.6,4342.5,0.188]
[1756586400003,0.4897,4342.6,4342.5,0.188]
[1756586400999,0.4897,4342.6,4342.5,0.539]
[1756586401606,0.1983,4341.8,4341.6,3.2078]
[1756586401808,0.1983,4341.7,4341.4,0.233]
[1756586402000,3.2078,4342.1,4341.5,0.233]
[1756586402001,0.4897,4341.6,4341.5,0.233]
[1756586402203,0.4897,4341.6,4341.5,0.584]
[1756586402400,0.1983,4342.0,4341.9,0.2085]
[1756586402605,0.4897,4342.0,4341.9,0.351]
[1756586409204,3.397,4342.7,4342.6,0.191]
[1756586409410,3.397,4342.7,4342.6,0.3333]
[1756586409909,3.6832,4342.7,4342.6,0.3333]
[1756586410612,3.6832,4342.7,4341.7,3.2078]
[1756586410911,0.4754,4342.0,4341.9,0.3333]
[1756586414111,0.4754,4342.0,4341.9,0.5663]
[1756586414510,0.2862,4342.6,4341.9,0.424]
[1756586414816,0.2862,4342.6,4342.5,0.3333]
[1756586415018,0.2862,4342.6,4342.5,0.5663]
[1756586417712,3.2078,4343.4,4342.6,0.1423]
[1756586418014,0.2862,4343.3,4342.6,0.1423]
[1756586418712,3.2078,4343.4,4342.8,0.1423]
[1756586418917,3.2078,4343.4,4342.7,3.2078]
[1756586418918,0.2862,4343.3,4342.7,3.2078]
[1756586419210,0.4754,4342.9,4342.7,3.2078]
[1756586419414,3.2078,4343.4,4342.2,3.2078]
[1756586419415,0.4754,4342.3,4342.2,3.2078]
[1756586419606,0.4754,4342.3,4342.2,3.4408]
[1756586419809,0.1892,4342.3,4342.2,0.233]
[1756586420413,0.4754,4342.3,4342.2,0.233]
[1756586422215,0.1892,4342.3,4341.7,3.2078]
[1756586422420,0.4754,4341.8,4341.7,3.2078]
[1756586422623,0.4754,4341.8,4341.7,3.4408]
[1756586424812,0.4754,4341.8,4341.7,3.6318]
[1756586425021,0.4754,4341.8,4341.7,3.7741]
[1756586426217,0.4754,4341.8,4341.7,3.5411]
[1756586426418,0.4754,4341.8,4341.7,3.7741]
[1756586427919,0.4754,4341.8,4341.7,3.6318]
[1756586428124,0.4754,4341.8,4341.7,3.2078]
[1756586428325,0.4754,4341.8,4341.7,3.6318]
[1756586428526,0.4754,4341.8,4341.7,3.7741]
[1756586429727,0.4754,4341.8,4341.7,3.5411]
[1756586429924,0.4754,4341.8,4341.7,3.7741]
[1756586431128,0.4754,4341.8,4341.7,0.5663]
[1756586431528,0.4754,4341.8,4341.7,0.424]
[1756586432229,0.4754,4341.8,4341.7,0.5663]
[1756586434937,0.4754,4342.3,4342.2,0.3333]
[1756586435138,0.70569001,4342.3,4342.2,0.5663]
[1756586435833,0.4754,4342.3,4342.2,0.5663]
[1756586436438,0.4754,4342.3,4342.2,0.424]
[1756586437133,0.4754,4342.3,4342.2,0.5663]
[1756586439038,0.4754,4342.3,4342.2,0.424]
[1756586439433,0.4754,4342.3,4342.2,0.233]
[1756586441736,0.4754,4342.3,4342.2,0.4353]
[1756586442233,0.4754,4342.3,4342.2,0.5773]
[1756586442739,0.4754,4342.3,4342.2,0.4353]
[1756586443438,0.4754,4342.3,4342.2,0.5773]
[1756586444042,0.4754,4342.3,4342.2,0.233]
[1756586445446,0.3096,4341.6,4341.5,3.2078]
[1756586445743,0.2083,4341.1,4341.0,33.175]
[1756586446044,0.5179,4341.1,4341.0,33.408]
[1756586446242,0.5179,4341.1,4341.0,33.55]
[1756586448839,0.5179,4341.1,4341.0,33.317]
[1756586449046,0.5179,4341.1,4341.0,33.408]
[1756586450043,0.5179,4341.1,4341.0,33.55]
[1756586456143,0.3096,4341.1,4341.0,33.55]
[1756586456648,3.2078,4341.9,4341.0,33.55]
[1756586456649,0.3096,4341.8,4341.1,0.142]
[1756586456845,0.3096,4341.8,4341.3,0.3443]
[1756586456846,0.2083,4341.4,4341.3,0.3443]
[1756586457050,0.5179,4341.4,4341.3,0.3443]
[1756586462752,3.7257,4341.4,4341.1,0.233]
[1756586467348,0.3006,4341.3,4340.3,0.1424]
[1756586467548,0.3006,4340.3,4340.0,33.176]
[1756586467750,3.2078,4340.9,4340.0,33.176]
[1756586467751,0.5004,4340.1,4340.0,33.3184]
[1756586467951,0.5004,4340.1,4340.0,33.5514]
[1756586469451,0.3006,4340.8,4340.0,33.409]
[1756586469656,0.5004,4340.8,4340.7,0.1949]
[1756586469856,0.5004,4340.8,4340.7,0.5703]
[1756586470251,0.5004,4340.8,4340.7,0.3373]
[1756586470452,0.5004,4340.8,4340.4,0.1424]
[1756586470652,0.5004,4340.8,4340.5,0.233]
[1756586471155,0.5004,4340.8,4340.4,0.1424]
[1756586471356,0.5004,4340.8,4340.5,0.233]
[1756586472959,0.5004,4340.8,4340.7,0.1949]
[1756586473158,0.5004,4340.8,4340.7,0.3373]
[1756586475057,0.3006,4341.3,4340.7,0.1949]
[1756586475262,0.5004,4341.9,4341.8,0.1949]
[1756586475557,0.5004,4341.9,4341.8,0.02307044]
[1756586476350,0.5004,4341.9,4341.5,0.233]
[1756586478856,3.4076,4342.0,4341.5,0.233]
[1756586479056,0.1998,4341.9,4341.5,0.233]
[1756586479258,3.2078,4342.0,4341.5,0.233]
[1756586479458,0.5004,4341.9,4341.5,0.233]
[1756586483659,0.1998,4341.0,4340.9,3.2078]
[1756586483964,0.5004,4341.0,4340.9,3.4408]
[1756586485166,0.3006,4341.0,4340.9,3.4408]
[1756586485363,3.2078,4342.0,4340.9,3.4408]
[1756586485364,0.3006,4341.9,4340.9,3.4408]
[1756586485861,0.5004,4341.8,4340.9,3.4408]
[1756586486064,0.5004,4341.8,4341.0,0.23034]
[1756586486467,0.3006,4341.7,4340.9,3.4408]
[1756586486661,0.5004,4341.7,4341.0,0.23034]
[1756586486867,0.5004,4341.7,4340.9,3.67115]
[1756586487771,0.5004,4341.7,4340.9,3.4408]
[1756586487965,0.3006,4341.6,4340.9,3.4408]
[1756586488271,0.5004,4341.6,4340.9,3.4408]
[1756586492379,0.3006,4341.6,4340.9,3.4408]
[1756586493478,0.5004,4341.6,4340.9,3.4408]
[1756586493878,0.5004,4341.0,4340.9,3.2078]
[1756586494079,0.5004,4341.0,4340.9,3.4408]
[1756586497279,0.3079,4341.9,4340.9,3.4408]
[1756586497480,3.2078,4342.0,4340.9,3.4408]
[1756586497676,0.3079,4341.9,4340.9,3.4408]
[1756586497876,3.2078,4342.0,4340.9,3.4408]
[1756586498175,0.3079,4341.9,4340.9,3.4408]
[1756586498374,3.2078,4342.0,4340.9,3.4408]
[1756586498570,0.3079,4341.9,4340.9,3.4408]
[1756586499180,3.2078,4342.0,4340.9,3.4408]
[1756586499377,0.3079,4341.9,4340.9,3.4408]
[1756586499581,3.2078,4342.0,4340.9,3.4408]
[1756586500281,0.3079,4341.9,4340.9,3.4408]
[1756586500580,3.2078,4342.0,4340.9,3.4408]
[1756586501079,0.5023,4341.8,4340.9,3.4408]
[1756586501679,0.5023,4341.7,4340.9,3.4408]
[1756586501885,0.5023,4341.6,4340.9,3.4408]
[1756586510288,0.3079,4341.5,4340.9,3.4408]
[1756586510489,3.2078,4342.0,4340.9,3.4408]
[1756586511490,0.3079,4341.9,4340.9,3.4408]
[1756586511689,3.2078,4342.0,4340.9,3.4408]
[1756586512594,0.3079,4341.9,4340.9,3.4408]
[1756586513289,3.2078,4342.0,4340.9,3.4408]
[1756586513495,0.3079,4341.9,4340.9,3.4408]
[1756586513895,3.2078,4342.0,4340.9,3.4408]
[1756586514091,0.3079,4341.9,4340.9,3.4408]
[1756586514290,3.2078,4342.0,4340.9,3.4408]
[1756586514795,0.3079,4341.9,4340.9,3.4408]
[1756586515002,3.2078,4342.0,4340.9,3.4408]
[1756586515891,0.3079,4341.9,4340.9,3.4408]
[1756586516091,3.2078,4342.0,4340.9,3.4408]
[1756586516291,0.3079,4341.9,4340.9,3.4408]
[1756586516692,3.2078,4342.0,4340.9,3.4408]
[1756586516892,0.3079,4341.9,4340.9,3.4408]
[1756586517093,3.2078,4342.0,4340.9,3.4408]
[1756586517399,0.3079,4341.9,4340.9,3.4408]
[1756586517596,3.2078,4342.0,4340.9,3.4408]
[1756586518097,0.3079,4341.9,4340.9,3.4408]
[1756586518298,3.2078,4342.0,4340.9,3.4408]
[1756586519486,0.3079,4341.9,4340.9,3.4408]
[1756586519887,3.2078,4342.0,4340.9,3.4408]
[1756586520088,0.3079,4341.9,4340.9,3.4408]
[1756586520293,3.2078,4342.0,4340.9,3.4408]
[1756586521495,0.3079,4341.9,4340.9,3.2078]
[1756586521700,0.3079,4341.9,4341.0,0.233]
[1756586522294,0.3079,4341.9,4340.9,3.2078]
[1756586522495,0.1944,4341.0,4340.9,3.2078]
[1756586522702,0.1944,4340.8,4340.7,33.176]
[1756586522898,0.5023,4340.8,4340.7,33.409]
[1756586526102,0.3079,4340.8,4340.7,33.409]
[1756586526403,0.3079,4341.4,4340.7,33.409]
[1756586526903,3.2078,4341.5,4340.7,33.409]
[1756586527091,3.2078,4341.5,4339.9,6.0962345]
[1756586527092,0.3079,4340.7,4339.9,6.0962345]
[1756586527296,0.4954,4340.0,4339.9,3.2078]
[1756586527496,0.4954,4340.0,4339.9,3.4408]
[1756586528503,0.4954,4340.0,4339.9,3.2078]
[1756586528705,0.4954,4340.0,4339.9,3.4408]
[1756586529504,0.4954,4340.0,4339.9,3.2078]
[1756586529803,0.4954,4340.0,4339.9,3.4408]
[1756586531305,0.4954,4340.0,4339.9,3.2078]
[1756586531704,0.4954,4340.0,4339.9,3.4408]
[1756586532804,0.4954,4340.0,4339.9,3.2078]
[1756586533103,0.1908,4340.0,4339.3,3.2078]
[1756586533307,0.1908,4339.4,4339.3,3.2078]
[1756586533606,0.4954,4339.4,4339.3,3.4408]
[1756586533904,0.4954,4339.4,4339.3,3.2078]
[1756586534106,0.4954,4339.4,4339.3,3.4408]
[1756586535108,0.4954,4339.4,4339.3,0.233]
[1756586536305,0.4954,4339.4,4339.1,33.176]
[1756586536602,0.3046,4339.2,4339.1,33.176]
[1756586536904,0.3046,4339.2,4339.1,33.409]
[1756586537294,0.3046,4339.2,4339.1,33.176]
[1756586537496,0.3046,4339.2,4339.1,33.409]
[1756586543114,0.3046,4339.2,4339.1,34.409]
[1756586546824,0.3046,4340.1,4339.1,38.409]
[1756586547010,0.3046,4340.1,4339.3,3.2078]
[1756586547215,0.3046,4340.1,4339.4,0.233]
[1756586547415,0.4954,4340.1,4339.5,0.233]
[1756586549223,0.1908,4340.1,4339.3,3.2078]
[1756586549423,0.3046,4339.9,4339.6,0.233]
[1756586549625,0.3046,4340.2,4339.6,0.233]
[1756586550526,0.4954,4340.2,4339.6,0.233]
[1756586556324,0.3046,4340.2,4339.7,0.233]
[1756586557824,0.2972,4340.1,4339.8,3.2078]
[1756586558024,3.2078,4340.8,4339.8,3.2078]
[1756586558225,0.2972,4339.9,4339.8,3.2078]
[1756586560628,0.4903,4339.9,4339.8,3.2078]
[1756586560826,0.4903,4339.9,4339.8,3.4408]
[1756586563328,0.4903,4339.9,4339.8,3.2078]
[1756586563533,0.4903,4339.9,4339.8,3.4408]
[1756586563832,3.2078,4340.8,4339.8,3.4408]
[1756586564034,0.84952713,4340.7,4339.8,3.4408]
[1756586564227,0.61912713,4340.6,4339.8,3.4408]
[1756586564539,0.1931,4340.3,4339.8,3.4408]
[1756586564836,0.4903,4340.1,4339.8,3.4408]
[1756586565025,0.2972,4340.0,4339.8,3.4408]
[1756586565226,0.2972,4340.5,4339.8,3.4408]
[1756586565430,0.2972,4340.5,4339.8,0.233]
[1756586565731,3.2078,4340.3,4339.3,3.2078]
[1756586565926,0.1931,4339.5,4339.4,0.233]
[1756586566126,0.4903,4339.5,4339.4,0.233]
[1756586568335,0.2972,4339.9,4339.4,0.233]
[1756586568729,0.4903,4340.2,4339.4,0.233]
[1756586572933,0.1931,4339.9,4339.8,3.2078]
[1756586573134,0.4903,4339.9,4339.8,3.4398]
[1756586573335,3.2078,4340.8,4339.8,8.08492999]
[1756586573336,0.4903,4340.6,4339.8,8.08492999]
[1756586573531,0.4903,4340.6,4340.3,3.2078]
[1756586573726,0.4903,4340.8,4340.4,0.232]
[1756586573931,0.2972,4340.7,4340.4,0.232]
[1756586576138,3.2078,4341.3,4340.4,0.232]
[1756586576338,0.2972,4341.2,4340.4,0.232]
[1756586577232,0.1931,4340.5,4340.4,0.232]
[1756586577438,0.4903,4340.5,4340.3,3.2078]
[1756586577639,0.4903,4340.5,4340.4,0.232]
[1756586582647,0.4903,4340.4,4340.3,3.2078]
[1756586582940,0.4903,4340.4,4340.3,3.4398]
[1756586587546,0.2935,4341.2,4340.3,3.4398]
[1756586588243,3.2078,4341.3,4340.3,3.4398]
[1756586588639,0.2935,4341.2,4340.3,3.4398]
[1756586588839,3.2078,4341.3,4340.3,3.4398]
[1756586589142,0.2935,4341.2,4340.3,3.4398]
[1756586589339,3.2078,4341.3,4340.3,3.4398]
[1756586589942,0.2935,4341.2,4340.3,3.4398]
[1756586590645,3.2078,4341.3,4340.3,3.4398]
[1756586590845,0.2935,4341.2,4340.3,3.4398]
[1756586591047,3.2078,4341.3,4340.3,3.4398]
[1756586591247,0.2935,4341.2,4340.3,3.4398]
[1756586591650,3.2078,4341.3,4340.3,3.4398]
[1756586592042,0.2935,4341.2,4340.3,3.4398]
[1756586592243,3.2078,4341.3,4340.3,3.4398]
[1756586593051,0.2935,4341.2,4340.3,3.4398]
[1756586593347,3.2078,4341.3,4340.3,3.4398]
[1756586593547,0.2935,4341.2,4340.3,3.4398]
[1756586593949,3.2078,4341.3,4340.3,3.4398]
[1756586594249,0.1931,4340.4,4340.3,3.2078]
[1756586594452,0.4866,4340.4,4340.3,3.4398]
[1756586600455,0.4866,4340.4,4340.3,3.2078]
[1756586600654,0.4866,4340.4,4340.3,3.4398]
[1756586603153,0.2935,4341.2,4340.3,3.4398]
[1756586603349,0.2935,4341.0,4340.3,3.4398]
[1756586603652,0.4866,4341.0,4340.3,3.4398]
[1756586604853,0.2935,4340.9,4340.3,3.4398]
[1756586605049,0.4866,4340.9,4340.3,3.4398]
[1756586605249,0.2935,4340.7,4340.3,3.4398]
[1756586605450,0.2935,4341.2,4340.3,3.4398]
[1756586605650,0.2935,4341.0,4340.3,3.4398]
[1756586605953,0.2935,4341.2,4340.3,3.4398]
[1756586606155,0.2935,4341.0,4340.3,3.4398]
[1756586606355,0.2935,4341.2,4340.3,3.4398]
[1756586606554,0.2935,4341.0,4340.3,3.4398]
[1756586606759,3.43817001,4341.3,4340.3,3.4398]
[1756586607051,0.2935,4341.1,4340.3,3.4398]
[1756586607251,3.43817001,4341.3,4340.3,3.4398]
[1756586607556,0.4866,4341.0,4340.3,3.4398]
[1756586607749,3.43817001,4341.3,4340.3,3.4398]
[1756586607949,0.2935,4341.1,4340.3,3.4398]
[1756586608249,0.6191494,4341.2,4340.3,3.4398]
[1756586608250,0.2935,4341.2,4340.3,3.4398]
[1756586608455,0.2935,4341.0,4340.3,3.4398]
[1756586608650,0.2935,4340.9,4340.3,3.4398]
[1756586608852,0.1931,4340.9,4340.3,3.4398]
[1756586609053,0.2935,4340.7,4340.3,3.4398]
[1756586609355,3.2078,4341.3,4340.3,3.4398]